fUSD/lending_fUSD_20240818
["ID","MTS","AMOUNT","RATE_DAILY","PERIOD"]
[335179783,1723939410768,150.0,0.00014807,120]
[335179784,1723939419920,621.47,8.219e-05,2]
[335179785,1723939440401,328.0,9.926e-05,2]
[335179786,1723939440438,199.59,9.926e-05,2]
[335179787,1723939536693,174.67,9.916e-05,2]
[335179816,1723939830782,150.0,0.0001451,120]
[335179827,1723939831978,-327.85685687,0.00010002,2]
[335179828,1723939831990,-1865.69249295,0.00010002,2]
[335179830,1723939832002,-1812.07065018,0.00010002,2]
[335179831,1723939832011,-300.0,0.00010409,2]
[335179832,1723939832020,-473.0386422,0.0001041,2]
[335179833,1723939832045,-9526.9613578,0.0001041,2]
[335179834,1723939832056,-621.47,0.00010472,2]
[335179835,1723939832065,-3234.7659021,0.00010472,2]
[335179836,1723939832085,-298.3,0.00010472,2]
[335179837,1723939832096,-304.0036375,0.00010472,2]
[335179838,1723939832105,-199.88536966,0.00010566,2]
[335179839,1723939832117,-4594.90729691,0.00010566,2]
[335179840,1723939832126,-1963.19023673,0.00010588,2]
[335179841,1723939832144,-4387.80492852,0.00010588,2]
[335179842,1723939832155,-751.39001507,0.00010588,2]
[335179843,1723939832167,-13016.42111968,0.00010588,2]
[335179844,1723939832176,-150.0,0.00010785,2]
[335179845,1723939832185,-643.25,0.00010786,2]
[335179846,1723939832194,-328.1519,0.00010786,2]
[335179847,1723939832203,-44163.1879,0.00010786,2]
[335179848,1723939832212,-1000.0,0.00010786,2]
[335179849,1723939832221,-499.99,0.00010786,2]
[335179850,1723939832230,-9298.74,0.00010797,2]
[335179851,1723939832239,-299.99,0.00010797,2]
[335179852,1723939832248,-9999.99,0.00010797,2]
[335179854,1723939832257,-331.74,0.00010799,2]
[335179856,1723939832267,-150.99,0.00010799,2]
[335179857,1723939832276,-999.99,0.00010799,2]
[335179858,1723939832285,-2500.0,0.000108,2]
[335179859,1723939832299,-1076.0,0.00010839,2]
[335179860,1723939832308,-3726.0,0.00010839,2]
[335179861,1723939832317,-289.0,0.00010839,2]
[335179862,1723939832326,-5844.0,0.00010839,2]
[335179863,1723939832336,-1673.0,0.00010839,2]
[335179864,1723939832345,-1205.0,0.00010839,2]
[335179865,1723939832354,-299.9903,0.00010846,2]
[335179866,1723939832363,-694.37,0.00010849,2]
[335179867,1723939832373,-500.0,0.00010861,2]
[335179868,1723939832382,-404.94420056,0.00010861,2]
[335179869,1723939832391,-494.2154294,0.00010862,2]
[335179870,1723939832400,-643.25,0.00010885,2]
[335179871,1723939832409,-500.0,0.00010885,2]
[335179872,1723939832418,-500.0,0.00010885,2]
[335179873,1723939832427,-500.0,0.00010885,2]
[335179874,1723939832437,-539.91,0.00010885,2]
[335179875,1723939832446,-500.0,0.00010885,2]
[335179876,1723939832456,-500.0,0.00010885,2]
[335179877,1723939832465,-500.0,0.00010885,2]
[335179878,1723939832474,-500.0,0.00010885,2]
[335179879,1723939832483,-735.72,0.00010885,2]
[335179880,1723939832492,-1309.85,0.00010885,2]
[335179881,1723939832501,-210.02498395,0.00010885,2]
[335179882,1723939832511,-500.0,0.00010885,2]
[335179883,1723939832520,-2196.87,0.00010885,2]
[335179884,1723939832530,-500.0,0.00010885,2]
[335179885,1723939832548,-5780.78,0.00010885,2]
[335179886,1723939832557,-500.0,0.00010885,2]
[335179887,1723939832566,-2151.05,0.00010885,2]
[335179888,1723939832575,-500.0,0.00010885,2]
[335179889,1723939832766,-500.0,0.00010885,2]
[335179890,1723939832778,-500.0,0.00010885,2]
[335179891,1723939832787,-2791.85,0.00010885,2]
[335179892,1723939832796,-659.82,0.00010885,2]
[335179893,1723939832805,-500.0,0.00010885,2]
[335179894,1723939832815,-897.56,0.00010885,2]
[335179895,1723939832824,-1347.61,0.00010885,2]
[335179896,1723939832832,-678.67,0.00010885,2]
[335179897,1723939832841,-1092.76,0.00010885,2]
[335179898,1723939832851,-500.0,0.00010885,2]
[335179899,1723939832860,-5245.4,0.00010885,2]
[335179900,1723939832869,-539.02,0.00010885,2]
[335179901,1723939832878,-761.81,0.00010885,2]
[335179902,1723939832887,-500.19,0.00010885,2]
[335179903,1723939832895,-4670.76,0.00010885,2]
[335179904,1723939832905,-656.92,0.00010885,2]
[335179905,1723939832914,-500.0,0.00010885,2]
[335179906,1723939832923,-650.07,0.00010885,2]
[335179907,1723939832932,-897.77,0.00010885,2]
[335179908,1723939832941,-500.0,0.00010885,2]
[335179909,1723939832950,-1625.21,0.00010885,2]
[335179910,1723939832959,-797.92,0.00010885,2]
[335179911,1723939832968,-500.0,0.00010885,2]
[335179912,1723939832977,-2024.8,0.00010885,2]
[335179913,1723939832986,-500.0,0.00010885,2]
[335179914,1723939832995,-561.27,0.00010885,2]
[335179915,1723939833004,-643.25,0.00010886,2]
[335179916,1723939833013,-643.25,0.00010887,2]
[335179917,1723939833023,-643.25,0.00010887,2]
[335179918,1723939833035,-503.88900716,0.00010888,2]
[335179919,1723939833044,-155.0,0.00010888,2]
[335179920,1723939833054,-2371.7807,0.0001089,2]
[335179921,1723939833063,-376.00802265,0.0001089,2]
[335179922,1723939833072,-643.25,0.00010897,2]
[335179923,1723939833082,-3212.9046,0.00010898,2]
[335179924,1723939833091,-169.84462218,0.00010899,2]
[335179925,1723939833100,-155.0,0.00010899,2]
[335179926,1723939833109,-155.0,0.00010899,2]
[335179927,1723939833119,-200.94525158,0.00010899,2]
[335179928,1723939833128,-161.31541777,0.000109,2]
[335179929,1723939833137,-161.31541775,0.000109,2]
[335179930,1723939833146,-161.31541775,0.000109,2]
[335179931,1723939833155,-161.31541775,0.000109,2]
[335179932,1723939833165,-161.31541775,0.000109,2]
[335179933,1723939833173,-1951.98741844,0.000109,2]
[335179934,1723939833183,-353.77465098,0.000109,2]
[335179935,1723939833192,-500.0,0.00010927,2]
[335179936,1723939833202,-622.0,0.00010946,2]
[335179937,1723939833211,-1924.0,0.00010946,2]
[335179938,1723939833221,-1257.0,0.00010946,2]
[335179939,1723939833230,-1543.0,0.00010946,2]
[335179940,1723939833239,-446.0,0.00010946,2]
[335179941,1723939833248,-811.0,0.00010946,2]
[335179942,1723939833258,-1137.0,0.00010946,2]
[335179943,1723939833267,-556.0,0.00010946,2]
[335179944,1723939833276,-150.0,0.00010946,2]
[335179945,1723939833287,-1896.0,0.00010946,2]
[335179946,1723939833300,-551.0,0.00010946,2]
[335179947,1723939833309,-150.0,0.00010946,2]
[335179948,1723939833318,-247.0,0.00010946,2]
[335179949,1723939833328,-1171.0,0.00010946,2]
[335179950,1723939833338,-3318.0,0.00010946,2]
[335179951,1723939833347,-764.0,0.00010946,2]
[335179952,1723939833356,-500.0,0.00010947,2]
[335179953,1723939833365,-678.29,0.00010949,2]
[335179954,1723939833378,-500.0,0.00010949,2]
[335179955,1723939833388,-23960.59008871,0.0001095,2]
[335179956,1723939833397,-150.0,0.00010959,2]
[335179957,1723939833406,-1774.78,0.00010959,2]
[335179958,1723939833416,-250.0,0.00010959,2]
[335179959,1723939833425,-431.51,0.00010959,2]
[335179960,1723939833434,-359.59,0.00010959,2]
[335179961,1723939833443,-299.66,0.00010959,2]
[335179962,1723939833453,-249.71,0.00010959,2]
[335179963,1723939833462,-208.1,0.00010959,2]
[335179964,1723939833471,-173.41,0.00010959,2]
[335179965,1723939833481,-867.09,0.00010959,2]
[335179966,1723939833491,-200.0,0.00010973,2]
[335179967,1723939833500,-1000.0,0.00010987,2]
[335179968,1723939833509,-643.25,0.00010987,2]
[335179969,1723939833519,-643.25,0.00010991,2]
[335179970,1723939833529,-500.0,0.00010991,2]
[335179971,1723939833538,-373.58618981,0.00010991,2]
[335179972,1723939833548,-500.0,0.00010991,2]
[335179973,1723939833557,-735.72,0.00010991,2]
[335179974,1723939833565,-2436.2299252,0.00010991,2]
[335179975,1723939833575,-500.0,0.00010991,2]
[335179976,1723939833584,-2196.87,0.00010991,2]
[335179977,1723939833594,-500.0,0.00010991,2]
[335179978,1723939833603,-500.0,0.00010991,2]
[335179979,1723939833613,-500.0,0.00010991,2]
[335179980,1723939833623,-500.0,0.00010991,2]
[335179981,1723939833632,-659.82,0.00010991,2]
[335179982,1723939833641,-357.18130892,0.00010991,2]
[335179983,1723939833650,-1347.61,0.00010991,2]
[335179984,1723939833660,-678.67,0.00010991,2]
[335179985,1723939833669,-1092.76,0.00010991,2]
[335179986,1723939833679,-500.0,0.00010991,2]
[335179987,1723939833688,-539.02,0.00010991,2]
[335179988,1723939833697,-4670.76,0.00010991,2]
[335179989,1723939833707,-656.92,0.00010991,2]
[335179990,1723939833716,-650.07,0.00010991,2]
[335179991,1723939833726,-897.77,0.00010991,2]
[335179992,1723939833736,-500.0,0.00010991,2]
[335179993,1723939833746,-1625.21,0.00010991,2]
[335179994,1723939833755,-1449.497246,0.00010991,2]
[335179995,1723939833764,-797.92,0.00010991,2]
[335179996,1723939833774,-2024.8,0.00010991,2]
[335179997,1723939833784,-561.27,0.00010991,2]
[335179998,1723939833794,-2480.2287265,0.00010992,2]
[335179999,1723939833803,-2524.2275279,0.00010992,2]
[335180000,1723939833812,-2568.2263292,0.00010992,2]
[335180001,1723939833821,-2612.2251305,0.00010992,2]
[335180002,1723939833830,-2656.2239318,0.00010992,2]
[335180003,1723939833839,-1473.6555334,0.00010992,2]
[335180004,1723939833849,-1497.8138209,0.00010992,2]
[335180005,1723939833859,-1521.9721083,0.00010992,2]
[335180006,1723939833868,-1546.1303958,0.00010992,2]
[335180007,1723939833877,-1570.2886832,0.00010992,2]
[335180008,1723939833887,-1000.0,0.00010994,3]
[335180009,1723939833896,-500.0,0.00010995,2]
[335180010,1723939833905,-500.0,0.00010995,2]
[335180011,1723939833915,-500.0,0.00010995,2]
[335180012,1723939833924,-539.91,0.00010995,2]
[335180013,1723939833934,-500.0,0.00010995,2]
[335180014,1723939833943,-1309.85,0.00010995,2]
[335180015,1723939833952,-5780.78,0.00010995,2]
[335180016,1723939833961,-2151.05,0.00010995,2]
[335180017,1723939833970,-500.0,0.00010995,2]
[335180018,1723939833979,-2791.85,0.00010995,2]
[335180019,1723939833988,-897.56,0.00010995,2]
[335180020,1723939833998,-5245.4,0.00010995,2]
[335180021,1723939834007,-761.81,0.00010995,2]
[335180022,1723939834016,-500.19,0.00010995,2]
[335180023,1723939834025,-500.0,0.00010995,2]
[335180024,1723939834036,-437.78,0.00010995,2]
[335180025,1723939834045,-423.15,0.00010995,2]
[335180026,1723939834054,-643.25,0.00010996,2]
[335180027,1723939834063,-500.0,0.00010996,2]
[335180028,1723939834073,-500.0,0.00010996,2]
[335180029,1723939834082,-500.0,0.00010996,2]
[335180030,1723939834091,-539.91,0.00010996,2]
[335180032,1723939834100,-500.0,0.00010996,2]
[335180033,1723939834109,-500.0,0.00010996,2]
[335180034,1723939834118,-500.0,0.00010996,2]
[335180035,1723939834127,-735.72,0.00010996,2]
[335180036,1723939834136,-1309.85,0.00010996,2]
[335180037,1723939834146,-500.0,0.00010996,2]
[335180038,1723939834155,-2196.87,0.00010996,2]
[335180039,1723939834164,-500.0,0.00010996,2]
[335180040,1723939834173,-5780.78,0.00010996,2]
[335180041,1723939834182,-500.0,0.00010996,2]
[335180042,1723939834191,-2151.05,0.00010996,2]
[335180043,1723939834200,-500.0,0.00010996,2]
[335180044,1723939834210,-500.0,0.00010996,2]
[335180045,1723939834219,-500.0,0.00010996,2]
[335180046,1723939834228,-2791.85,0.00010996,2]
[335180047,1723939834237,-659.82,0.00010996,2]
[335180048,1723939834246,-1347.61,0.00010996,2]
[335180049,1723939834255,-897.56,0.00010996,2]
[335180050,1723939834264,-678.67,0.00010996,2]
[335180051,1723939834273,-1092.76,0.00010996,2]
[335180052,1723939834283,-500.0,0.00010996,2]
[335180053,1723939834294,-5245.4,0.00010996,2]
[335180054,1723939834304,-539.02,0.00010996,2]
[335180055,1723939834313,-761.81,0.00010996,2]
[335180056,1723939834323,-500.19,0.00010996,2]
[335180057,1723939834332,-4670.76,0.00010996,2]
[335180058,1723939834343,-656.92,0.00010996,2]
[335180059,1723939834351,-500.0,0.00010996,2]
[335180060,1723939834360,-650.07,0.00010996,2]
[335180061,1723939834371,-897.77,0.00010996,2]
[335180062,1723939834380,-500.0,0.00010996,2]
[335180063,1723939834389,-1625.21,0.00010996,2]
[335180064,1723939834398,-797.92,0.00010996,2]
[335180065,1723939834407,-2024.8,0.00010996,2]
[335180066,1723939834416,-561.27,0.00010996,2]
[335180067,1723939834426,-948.9800317,0.00010997,2]
[335180068,1723939834435,-643.25,0.00010997,2]
[335180069,1723939834444,-643.25,0.00010997,2]
[335180070,1723939834453,-643.25,0.00010997,2]
[335180071,1723939834463,-643.25,0.00010997,2]
[335180072,1723939834472,-643.25,0.00010997,2]
[335180073,1723939834481,-643.25,0.00010997,2]
[335180074,1723939834490,-643.25,0.00010997,2]
[335180075,1723939834499,-643.25,0.00010998,2]
[335180076,1723939834513,-643.25,0.00010998,2]
[335180077,1723939834522,-643.25,0.00010998,2]
[335180078,1723939834531,-500.0,0.00010998,2]
[335180079,1723939834541,-500.0,0.00010998,2]
[335180080,1723939834551,-500.0,0.00010998,2]
[335180081,1723939834560,-539.91,0.00010998,2]
[335180082,1723939834569,-500.0,0.00010998,2]
[335180083,1723939834578,-500.0,0.00010998,2]
[335180084,1723939834588,-500.0,0.00010998,2]
[335180085,1723939834597,-735.72,0.00010998,2]
[335180086,1723939834607,-1309.85,0.00010998,2]
[335180087,1723939834616,-500.0,0.00010998,2]
[335180088,1723939834628,-439.92411316,0.00010998,2]
[335180089,1723939834637,-2196.87,0.00010998,2]
[335180090,1723939834647,-500.0,0.00010998,2]
[335180091,1723939834656,-500.0,0.00010998,2]
[335180092,1723939834665,-5780.78,0.00010998,2]
[335180093,1723939834674,-500.0,0.00010998,2]
[335180094,1723939834684,-500.0,0.00010998,2]
[335180095,1723939834694,-2151.05,0.00010998,2]
[335180096,1723939834703,-500.0,0.00010998,2]
[335180097,1723939834713,-500.0,0.00010998,2]
[335180098,1723939834722,-500.0,0.00010998,2]
[335180099,1723939834731,-500.0,0.00010998,2]
[335180100,1723939834740,-500.0,0.00010998,2]
[335180101,1723939834750,-2791.85,0.00010998,2]
[335180102,1723939834760,-659.82,0.00010998,2]
[335180103,1723939834769,-659.82,0.00010998,2]
[335180104,1723939834779,-1347.61,0.00010998,2]
[335180105,1723939834789,-1347.61,0.00010998,2]
[335180106,1723939834798,-897.56,0.00010998,2]
[335180107,1723939834808,-678.67,0.00010998,2]
[335180108,1723939834817,-678.67,0.00010998,2]
[335180109,1723939834826,-1092.76,0.00010998,2]
[335180110,1723939834836,-500.0,0.00010998,2]
[335180111,1723939834845,-500.0,0.00010998,2]
[335180112,1723939834854,-5245.4,0.00010998,2]
[335180113,1723939834863,-539.02,0.00010998,2]
[335180114,1723939834872,-539.02,0.00010998,2]
[335180115,1723939834881,-761.81,0.00010998,2]
[335180116,1723939834890,-500.19,0.00010998,2]
[335180117,1723939834899,-4670.76,0.00010998,2]
[335180118,1723939834909,-656.92,0.00010998,2]
[335180119,1723939834918,-656.92,0.00010998,2]
[335180120,1723939834927,-500.0,0.00010998,2]
[335180121,1723939834936,-650.07,0.00010998,2]
[335180122,1723939834945,-650.07,0.00010998,2]
[335180123,1723939834954,-897.77,0.00010998,2]
[335180124,1723939834964,-897.77,0.00010998,2]
[335180125,1723939834972,-500.0,0.00010998,2]
[335180126,1723939834981,-500.0,0.00010998,2]
[335180127,1723939834990,-1625.21,0.00010998,2]
[335180128,1723939835000,-1625.21,0.00010998,2]
[335180129,1723939835009,-797.92,0.00010998,2]
[335180130,1723939835019,-797.92,0.00010998,2]
[335180131,1723939835029,-678.29,0.00010998,2]
[335180132,1723939835038,-678.29,0.00010998,2]
[335180133,1723939835047,-678.29,0.00010998,2]
[335180134,1723939835056,-678.29,0.00010998,2]
[335180135,1723939835065,-2024.8,0.00010998,2]
[335180136,1723939835074,-2024.8,0.00010998,2]
[335180137,1723939835083,-500.0,0.00010998,2]
[335180138,1723939835092,-500.0,0.00010998,2]
[335180139,1723939835101,-500.0,0.00010998,2]
[335180140,1723939835110,-500.0,0.00010998,2]
[335180141,1723939835120,-561.27,0.00010998,2]
[335180142,1723939835129,-1049.0,0.00010999,2]
[335180143,1723939835138,-643.25,0.00010999,2]
[335180144,1723939835147,-643.25,0.00010999,2]
[335180145,1723939835156,-643.25,0.00010999,2]
[335180146,1723939835165,-643.25,0.00010999,2]
[335180147,1723939835173,-643.25053901,0.00010999,2]
[335180148,1723939835183,-500.0,0.00010999,2]
[335180149,1723939835192,-500.0,0.00010999,2]
[335180150,1723939835202,-399.54131242,0.00010999,2]
[335180151,1723939835211,-500.0,0.00010999,2]
[335180152,1723939835220,-500.0,0.00010999,2]
[335180153,1723939835229,-500.0,0.00010999,2]
[335180154,1723939835238,-590.60246112,0.00010999,2]
[335180155,1723939835247,-191.13732459,0.00010999,2]
[335180156,1723939835256,-539.91,0.00010999,2]
[335180157,1723939835265,-539.91,0.00010999,2]
[335180158,1723939835274,-539.91,0.00010999,2]
[335180159,1723939835284,-539.91,0.00010999,2]
[335180160,1723939835297,-539.91,0.00010999,2]
[335180161,1723939835306,-539.91,0.00010999,2]
[335180162,1723939835315,-539.91,0.00010999,2]
[335180163,1723939835324,-539.91,0.00010999,2]
[335180164,1723939835334,-539.91,0.00010999,2]
[335180165,1723939835343,-539.91,0.00010999,2]
[335180166,1723939835352,-539.91,0.00010999,2]
[335180167,1723939835361,-539.91,0.00010999,2]
[335180168,1723939835373,-539.91,0.00010999,2]
[335180169,1723939835383,-539.91,0.00010999,2]
[335180170,1723939835392,-539.91,0.00010999,2]
[335180171,1723939835401,-539.91,0.00010999,2]
[335180172,1723939835410,-539.91,0.00010999,2]
[335180173,1723939835419,-539.91,0.00010999,2]
[335180174,1723939835428,-539.91,0.00010999,2]
[335180175,1723939835438,-539.91085396,0.00010999,2]
[335180176,1723939835450,-500.0,0.00010999,2]
[335180177,1723939835460,-500.0,0.00010999,2]
[335180178,1723939835469,-500.0,0.00010999,2]
[335180179,1723939835480,-500.0,0.00010999,2]
[335180180,1723939835489,-165.72520405,0.00010999,2]
[335180181,1723939835499,-500.0,0.00010999,2]
[335180182,1723939835508,-500.0,0.00010999,2]
[335180183,1723939835517,-500.0,0.00010999,2]
[335180184,1723939835526,-634.93247958,0.00010999,2]
[335180185,1723939835535,-500.0,0.00010999,2]
[335180186,1723939835544,-500.0,0.00010999,2]
[335180187,1723939835555,-500.0,0.00010999,2]
[335180188,1723939835564,-569.48832984,0.00010999,2]
[335180189,1723939835573,-735.72,0.00010999,2]
[335180190,1723939835582,-735.72,0.00010999,2]
[335180191,1723939835592,-735.72,0.00010999,2]
[335180192,1723939835601,-1309.85,0.00010999,2]
[335180193,1723939835610,-735.72,0.00010999,2]
[335180194,1723939835619,-735.72,0.00010999,2]
[335180195,1723939835628,-1309.85,0.00010999,2]
[335180196,1723939835637,-735.72,0.00010999,2]
[335180197,1723939835646,-1309.85,0.00010999,2]
[335180198,1723939835655,-735.72,0.00010999,2]
[335180199,1723939835664,-1309.85,0.00010999,2]
[335180200,1723939835673,-735.72,0.00010999,2]
[335180201,1723939835682,-1309.85,0.00010999,2]
[335180202,1723939835692,-735.72,0.00010999,2]
[335180203,1723939835701,-1309.85,0.00010999,2]
[335180204,1723939835710,-1309.85,0.00010999,2]
[335180205,1723939835719,-735.72,0.00010999,2]
[335180206,1723939835728,-1309.85,0.00010999,2]
[335180207,1723939835738,-735.72,0.00010999,2]
[335180208,1723939835747,-1309.85,0.00010999,2]
[335180209,1723939835756,-735.72,0.00010999,2]
[335180210,1723939835765,-1309.85,0.00010999,2]
[335180211,1723939835775,-735.72,0.00010999,2]
[335180212,1723939835785,-1309.85,0.00010999,2]
[335180213,1723939835794,-735.72,0.00010999,2]
[335180214,1723939835803,-1309.85,0.00010999,2]
[335180215,1723939835812,-1309.85,0.00010999,2]
[335180216,1723939835821,-735.72,0.00010999,2]
[335180217,1723939835830,-735.72,0.00010999,2]
[335180218,1723939835839,-1309.85,0.00010999,2]
[335180219,1723939835848,-735.72,0.00010999,2]
[335180220,1723939835857,-1309.85,0.00010999,2]
[335180221,1723939835866,-735.72,0.00010999,2]
[335180222,1723939835875,-735.72,0.00010999,2]
[335180223,1723939835884,-1309.85,0.00010999,2]
[335180224,1723939835893,-735.86986921,0.00010999,2]
[335180225,1723939835902,-1309.85,0.00010999,2]
[335180226,1723939835911,-1309.85,0.00010999,2]
[335180227,1723939835920,-1309.85,0.00010999,2]
[335180228,1723939835930,-1310.06266612,0.00010999,2]
[335180229,1723939835939,-2196.87,0.00010999,2]
[335180230,1723939835948,-2196.87,0.00010999,2]
[335180231,1723939835957,-2196.87,0.00010999,2]
[335180232,1723939835967,-2196.87,0.00010999,2]
[335180233,1723939835976,-1305.23673206,0.00010999,2]
[335180234,1723939835994,-891.63326794,0.00010999,2]
[335180235,1723939836003,-2196.87,0.00010999,2]
[335180236,1723939836012,-2196.87,0.00010999,2]
[335180237,1723939836021,-2196.87,0.00010999,2]
[335180238,1723939836031,-2196.87,0.00010999,2]
[335180239,1723939836040,-2196.87,0.00010999,2]
[335180240,1723939836049,-2196.87,0.00010999,2]
[335180241,1723939836058,-2196.87,0.00010999,2]
[335180242,1723939836067,-2196.87,0.00010999,2]
[335180243,1723939836076,-500.0,0.00010999,2]
[335180244,1723939836085,-2196.87,0.00010999,2]
[335180245,1723939836095,-500.0,0.00010999,2]
[335180246,1723939836106,-2196.87,0.00010999,2]
[335180247,1723939836117,-500.0,0.00010999,2]
[335180248,1723939836128,-2196.87,0.00010999,2]
[335180249,1723939836138,-609.74924049,0.00010999,2]
[335180250,1723939836272,-5780.78,0.00010999,2]
[335180251,1723939836303,-2196.87,0.00010999,2]
[335180252,1723939836314,-5780.78,0.00010999,2]
[335180253,1723939836323,-2196.87,0.00010999,2]
[335180254,1723939836334,-5780.78,0.00010999,2]
[335180255,1723939836343,-2196.87,0.00010999,2]
[335180256,1723939836353,-5780.78,0.00010999,2]
[335180257,1723939836363,-2197.06736206,0.00010999,2]
[335180258,1723939836374,-5780.78,0.00010999,2]
[335180259,1723939836384,-5780.78,0.00010999,2]
[335180260,1723939836394,-5780.78,0.00010999,2]
[335180261,1723939836403,-5780.78,0.00010999,2]
[335180262,1723939836413,-5780.78,0.00010999,2]
[335180263,1723939836423,-5780.78,0.00010999,2]
[335180264,1723939836433,-5780.78,0.00010999,2]
[335180265,1723939836442,-5780.78,0.00010999,2]
[335180266,1723939836451,-5780.78,0.00010999,2]
[335180267,1723939836461,-5780.78,0.00010999,2]
[335180268,1723939836471,-5780.78,0.00010999,2]
[335180269,1723939836480,-5780.78,0.00010999,2]
[335180270,1723939836490,-5780.78,0.00010999,2]
[335180271,1723939836499,-5780.78,0.00010999,2]
[335180272,1723939836508,-500.0,0.00010999,2]
[335180273,1723939836518,-5780.78,0.00010999,2]
[335180274,1723939836527,-500.0,0.00010999,2]
[335180275,1723939836546,-5780.9220871,0.00010999,2]
[335180276,1723939836556,-500.0,0.00010999,2]
[335180277,1723939836565,-500.0,0.00010999,2]
[335180278,1723939836575,-500.0,0.00010999,2]
[335180279,1723939836584,-500.0,0.00010999,2]
[335180280,1723939836594,-500.0,0.00010999,2]
[335180281,1723939836604,-500.0,0.00010999,2]
[335180282,1723939836613,-500.0,0.00010999,2]
[335180283,1723939836623,-500.0,0.00010999,2]
[335180284,1723939836633,-500.0,0.00010999,2]
[335180285,1723939836642,-500.0,0.00010999,2]
[335180286,1723939836651,-500.0,0.00010999,2]
[335180287,1723939836661,-500.0,0.00010999,2]
[335180288,1723939836670,-266.27568533,0.00010999,2]
[335180289,1723939836679,-2151.05,0.00010999,2]
[335180290,1723939836689,-2151.05,0.00010999,2]
[335180291,1723939836698,-2151.05,0.00010999,2]
[335180292,1723939836708,-2151.05,0.00010999,2]
[335180293,1723939836717,-2151.05,0.00010999,2]
[335180294,1723939836727,-2151.05,0.00010999,2]
[335180295,1723939836737,-2151.05,0.00010999,2]
[335180296,1723939836747,-2151.05,0.00010999,2]
[335180297,1723939836756,-2151.05,0.00010999,2]
[335180298,1723939836765,-2151.05,0.00010999,2]
[335180299,1723939836774,-2151.05,0.00010999,2]
[335180300,1723939836785,-2151.05,0.00010999,2]
[335180301,1723939836805,-2151.05,0.00010999,2]
[335180302,1723939836827,-2151.05,0.00010999,2]
[335180303,1723939836849,-2151.05,0.00010999,2]
[335180304,1723939836873,-2151.05,0.00010999,2]
[335180305,1723939836894,-2151.05,0.00010999,2]
[335180306,1723939836916,-500.0,0.00010999,2]
[335180307,1723939836937,-2151.05,0.00010999,2]
[335180308,1723939836958,-500.0,0.00010999,2]
[335180309,1723939836982,-2151.05,0.00010999,2]
[335180310,1723939837005,-500.0,0.00010999,2]
[335180311,1723939837027,-2151.07306773,0.00010999,2]
[335180312,1723939837042,-500.0,0.00010999,2]
[335180313,1723939837051,-500.0,0.00010999,2]
[335180314,1723939837061,-500.0,0.00010999,2]
[335180315,1723939837070,-500.0,0.00010999,2]
[335180316,1723939837080,-500.0,0.00010999,2]
[335180317,1723939837089,-500.0,0.00010999,2]
[335180318,1723939837099,-235.7569224,0.00010999,2]
[335180319,1723939837114,-264.2430776,0.00010999,2]
[335180320,1723939837124,-529.50197722,0.00010999,2]
[335180321,1723939837134,-500.0,0.00010999,2]
[335180322,1723939837143,-265.30192924,0.00010999,2]
[335180323,1723939837152,-500.0,0.00010999,2]
[335180324,1723939837162,-422.15721583,0.00010999,2]